fUSD/lending_fUSD_20260515
["ID","MTS","AMOUNT","RATE_DAILY","PERIOD"]
[422334974,1778837449000,-1307.82,0.00028992,30]
[422334972,1778837449000,-500.43,0.00028989,30]
[422334973,1778837449000,-1307.82,0.00028991,30]
[422334975,1778837449000,-891.56,0.00028993,30]
[422334987,1778837449000,-366.97,0.00029049,2]
[422334984,1778837449000,-891.56,0.00029041,2]
[422334986,1778837449000,-500.0,0.00029046,60]
[422334985,1778837449000,-891.59,0.00029042,2]
[422334983,1778837449000,-1307.82,0.0002904,2]
[422334988,1778837449000,-366.85,0.0002905,2]
[422334980,1778837449000,-366.85,0.00029004,30]
[422334978,1778837449000,-214.997284,0.00029,7]
[422334981,1778837449000,-500.61,0.00029037,2]
[422334979,1778837449000,-366.97,0.00029003,30]
[422334977,1778837449000,-200042.9704501,0.00029,2]
[422334976,1778837449000,-891.59,0.00028994,30]
[422334982,1778837449000,-500.43,0.00029038,2]
[422335029,1778837450000,-366.88,0.00029232,7]
[422335032,1778837450000,-2421.33,0.000293,7]
[422335030,1778837450000,-576.0,0.00029273,4]
[422335031,1778837450000,-1466.72,0.000293,7]
[422335033,1778837450000,-11032.40812858,0.0002936,7]
[422335037,1778837450000,-150.0,0.00029534,2]
[422335036,1778837450000,-150.0,0.00029507,7]
[422335035,1778837450000,-500.0,0.00029454,2]
[422335026,1778837450000,-891.7,0.00029232,7]
[422335038,1778837450000,-12691.61,0.0002955,7]
[422335027,1778837450000,-500.47,0.00029232,7]
[422335028,1778837450000,-1307.89,0.00029232,7]
[422335024,1778837450000,-1307.96,0.00029232,7]
[422335025,1778837450000,-367.09,0.00029232,7]
[422335023,1778837450000,-891.62,0.00029232,7]
[422335021,1778837450000,-366.27,0.00029232,7]
[422335022,1778837450000,-500.66,0.00029232,7]
[422335039,1778837450000,-150.0,0.00029589,2]
[422335034,1778837450000,-450.0,0.00029443,2]
[422335040,1778837450000,-152.0,0.00029671,30]
[422335043,1778837450000,-576.0,0.00029807,4]
[422335044,1778837450000,-152.0,0.00029843,8]
[422335059,1778837450000,-108812.25223187,0.0003,5]
[422335057,1778837450000,-151.0,0.00029997,7]
[422335054,1778837450000,-214.997284,0.000299,7]
[422335060,1778837450000,-3199.01602128,0.0003,10]
[422335058,1778837450000,-366.95497307,0.0003,30]
[422335055,1778837450000,-3891.78,0.00029952,7]
[422335046,1778837450000,-500.0,0.00029868,60]
[422335053,1778837450000,-2421.33,0.000299,7]
[422335056,1778837450000,-240.77300292,0.0002999,2]
[422335049,1778837450000,-500.0,0.00029868,60]
[422335041,1778837450000,-152.0,0.00029715,30]
[422335042,1778837450000,-200.0,0.000298,2]
[422335051,1778837450000,-171.12,0.00029893,30]
[422335050,1778837450000,-523.30553844,0.00029875,2]
[422335047,1778837450000,-152.30346819,0.00029868,2]
[422335052,1778837450000,-171.12,0.00029893,30]
[422335048,1778837450000,-517.02258766,0.00029868,60]
[422335045,1778837450000,-1000.0,0.00029851,7]
[422335061,1778837451000,-804.39,0.00021123,7]
[422335069,1778837451000,-712.0,0.00023462,7]
[422335063,1778837451000,1369.01,0.00019724,2]
[422335064,1778837451000,-1127.01,0.00019724,2]
[422335065,1778837451000,-1134.98,0.00019724,2]
[422335066,1778837451000,-413.30790239,0.00022,2]
[422335068,1778837451000,-3631.0,0.00022724,2]
[422335067,1778837451000,-240.87123901,0.00022364,2]
[422335062,1778837451000,3631.0,0.00016724,2]
[422335071,1778837451000,-233.03196,0.00024658,2]
[422335070,1778837451000,-727.0,0.00024463,10]
[422335074,1778837451000,-891.58,0.00028331,2]
[422335072,1778837451000,-2219.0,0.00025397,10]
[422335076,1778837451000,-6800.98397872,0.0003,10]
[422335073,1778837451000,-3631.0,0.00025724,2]
[422335078,1778837451000,-37152.66134199,0.0003,2]
[422335079,1778837451000,-17784.38286929,0.0003,2]
[422335075,1778837451000,-891.58,0.00028378,7]
[422335077,1778837451000,-20171.83415881,0.0003,2]
[422335080,1778837466000,-215.94512088,0.00020913,3]
[422335082,1778837511000,-300.0,0.00016723,2]
[422335083,1778837511000,-3242.0,0.00016724,2]
[422335085,1778837557000,-3542.0,0.000126,2]
[422335084,1778837557000,-3542.0,0.000126,2]
[422335086,1778837558000,-300.0,0.000126,2]
[422335087,1778837604000,-300.0,0.000126,2]
[422335088,1778837605000,-10000.01,0.000126,2]
[422335089,1778837606000,-10000.01,0.000126,2]
[422335090,1778837607000,-10000.01,0.000126,2]
[422335092,1778837608000,-9850.01,0.000126,2]
[422335091,1778837608000,-150.0,0.00012599,2]
[422335093,1778837633000,-160.33,0.00012348,2]
[422335094,1778837664000,-10000.01,0.000126,2]
[422335095,1778837665000,-1503.412299,0.00012536,2]
[422335096,1778837665000,-8496.597701,0.000126,2]
[422335097,1778837685000,5000.0,0.00030137,120]
[422335098,1778837692000,10000.0,0.00030137,120]
[422335099,1778837700000,10000.0,0.00030137,120]
[422335100,1778837701000,2000.0,0.00028718,120]
[422335101,1778837710000,10000.0,0.00030137,120]
[422335102,1778837717000,10000.0,0.00030137,120]
[422335103,1778837758000,4882.79,0.00030137,120]
[422335104,1778837841000,4000.0,0.00030137,120]
[422335105,1778837854000,850.0,0.00030137,120]
[422335106,1778837971000,200.0,9.6e-07,120]
[422335107,1778837995000,705.07,0.00030137,120]
[422335108,1778838000000,150.0,0.00017795,120]
[422335109,1778838001000,230.12044001,0.00017795,120]
[422335111,1778838148000,1824.87,0.00030137,120]
[422335113,1778838207000,19992.29,0.00030137,120]
[422335114,1778838262000,429.36,0.00030137,120]
[422335115,1778838312000,174.55,0.0002511,120]
[422335116,1778838367000,1000.0,0.00030137,120]
[422335117,1778838385000,928.29,0.00030137,120]
[422335118,1778838592000,500.0,0.00029999,120]
[422335119,1778838592000,500.0,0.00030129,120]
[422335120,1778838593000,500.0,0.00030129,120]
[422335121,1778838600000,228.07226401,0.00022413,120]
[422335127,1778838631000,-258.52460383,0.00012348,2]
[422335126,1778838631000,-280.63250004,0.00012348,2]
[422335125,1778838631000,-4020.61892169,0.00012348,2]
[422335124,1778838631000,-587.048,0.00012348,2]
[422335122,1778838631000,-150.0,0.00012347,2]
[422335123,1778838631000,-1200.0,0.00012347,2]
[422335128,1778838632000,-392.30088105,0.00012348,2]
[422335130,1778838632000,-811.0,0.00012348,2]
[422335129,1778838632000,-552.72,0.00012348,2]
[422335132,1778838632000,-618.31401655,0.00012348,2]
[422335133,1778838632000,-346.0105407,0.00012348,2]
[422335131,1778838632000,-1618.91636732,0.00012348,2]
[422335169,1778838637000,-1199.89,0.00012348,2]
[422335179,1778838638000,-774.31066082,0.000126,2]
[422335178,1778838638000,-2434.06130214,0.000126,2]
[422335177,1778838638000,-2210.42487145,0.000126,2]
[422335175,1778838638000,-204.0,0.00012598,2]
[422335176,1778838638000,-150240.69904891,0.000126,2]
[422335173,1778838638000,-153.79777466,0.00012544,2]
[422335174,1778838638000,-245.71101778,0.00012553,2]
[422335172,1778838638000,-50025.12216882,0.00012348,2]
[422335171,1778838638000,-549.87,0.00012348,2]
[422335170,1778838638000,-500.0,0.00012348,2]
[422335228,1778838640000,-648.11332128,0.000126,2]
[422335227,1778838640000,-1308.81645654,0.000126,2]
[422335230,1778838640000,-32067.1,0.000126,2]
[422335229,1778838640000,-1800.02694516,0.000126,2]
[422335231,1778838640000,-593.84805256,0.000126,2]
[422335235,1778838645000,-13090.73559054,0.000126,2]
[422335240,1778838648000,-12408.7769931,0.000126,2]
[422335237,1778838648000,-1012.5,0.000126,2]
[422335238,1778838648000,-3357.63988897,0.000126,2]
[422335236,1778838648000,-146349.743,0.000126,2]
[422335244,1778838649000,-1679.0146387,0.00013392,2]
[422335243,1778838649000,-208.38824723,0.00012727,2]
[422335242,1778838649000,-2948.86234452,0.000126,2]
[422335241,1778838649000,-6410.07512401,0.000126,2]
[422335273,1778838954000,500.0,0.0003013,120]
[422335274,1778839019000,154.93,0.00029254,120]
[422335275,1778839202000,150.0,0.00021709,120]
[422335276,1778839202000,192.10839601,0.00021709,120]
[422335282,1778839709000,249.99,0.00030137,120]
[422335283,1778839809000,588.0,0.0003,120]
[422335317,1778839832000,-500.0,0.00013678,2]
[422335328,1778839832000,-500.0,0.00013856,2]
[422335309,1778839832000,-150.0,0.00013488,2]
[422335314,1778839832000,-150.0,0.00013638,2]
[422335313,1778839832000,-150.0,0.00013563,2]
[422335322,1778839832000,-200.0,0.00013699,2]
[422335310,1778839832000,-150.0,0.00013488,2]
[422335326,1778839832000,-150.0,0.00013787,2]
[422335336,1778839832000,-469.638,0.00014,2]
[422335324,1778839832000,-150.0,0.00013712,2]
[422335332,1778839832000,-150.0,0.00013937,2]
[422335330,1778839832000,-150.0,0.00013862,2]
[422335333,1778839832000,-333.0,0.00013952,2]
[422335340,1778839832000,-150.0,0.00014162,2]
[422335335,1778839832000,-25000.0,0.00014,3]
[422335315,1778839832000,-255.0,0.00013664,2]
[422335337,1778839832000,-361.83796434,0.00014,2]
[422335319,1778839832000,-500.0,0.00013698,2]
[422335311,1778839832000,-150.0,0.00013488,2]
[422335295,1778839832000,-159.7744723,0.00012571,2]
[422335308,1778839832000,-150.0,0.00013488,2]
[422335334,1778839832000,-250.0,0.00014,2]
[422335287,1778839832000,-700.28149329,0.00011899,2]
[422335286,1778839832000,-300.0,0.00011899,2]
[422335289,1778839832000,-12371.72065142,0.000119,2]
[422335288,1778839832000,-499.71850671,0.00011899,2]
[422335290,1778839832000,-150.0,0.0001257,2]
[422335291,1778839832000,-5392.00499468,0.00012571,2]
[422335292,1778839832000,-2924.95426732,0.00012571,2]
[422335312,1778839832000,-1000.0,0.000135,2]
[422335294,1778839832000,-4406.6271585,0.00012571,2]
[422335306,1778839832000,-150.0,0.00013488,2]
[422335307,1778839832000,-152.74636837,0.00013488,2]
[422335299,1778839832000,-332.96721227,0.00013392,2]
[422335297,1778839832000,-214.997284,0.00012828,2]
[422335298,1778839832000,-420.0,0.00013064,2]
[422335301,1778839832000,-151.0,0.00013392,2]
[422335302,1778839832000,-156.86,0.00013403,2]
[422335304,1778839832000,-150.0,0.00013488,2]
[422335296,1778839832000,-182.6548452,0.00012571,2]
[422335338,1778839832000,-150.0,0.00014012,2]
[422335339,1778839832000,-150.0,0.00014087,2]
[422335342,1778839832000,-150.0,0.00014312,2]
[422335359,1778839832000,-1351.95908668,0.000149,2]
[422335365,1778839832000,-1426.12503118,0.00014934,2]
[422335373,1778839832000,-500.0,0.0001497,2]
[422335366,1778839832000,-1426.12503118,0.00014968,2]
[422335368,1778839832000,-500.0,0.0001497,2]
[422335370,1778839832000,-689.73790928,0.0001497,2]
[422335369,1778839832000,-500.0,0.0001497,2]
[422335367,1778839832000,-500.0,0.0001497,2]
[422335360,1778839832000,-17061.47664226,0.000149,3]
[422335371,1778839832000,-1000.0,0.0001497,2]
[422335375,1778839832000,-210.36484867,0.00014986,2]
[422335376,1778839832000,-154.13236171,0.00014986,2]
[422335374,1778839832000,-1000.0,0.0001497,2]
[422335378,1778839832000,-154.77782111,0.00014986,2]
[422335377,1778839832000,-256.94184861,0.00014986,2]
[422335379,1778839832000,-211.03404089,0.0001499,2]
[422335380,1778839832000,-511.13281716,0.00014999,5]
[422335382,1778839832000,-576.69612718,0.00014999,2]
[422335372,1778839832000,-1215.46028509,0.0001497,2]
[422335361,1778839832000,-1426.1250312,0.000149,2]
[422335381,1778839832000,-500.0,0.00014999,2]
[422335362,1778839832000,-2093.22215376,0.000149,2]
[422335363,1778839832000,-1687.18713819,0.000149,2]
[422335341,1778839832000,-150.0,0.00014237,2]
[422335344,1778839832000,-150.0,0.00014387,2]
[422335345,1778839832000,-637.44,0.00014441,2]
[422335346,1778839832000,-150.0,0.00014462,2]
[422335347,1778839832000,-991.65,0.00014504,2]
[422335352,1778839832000,-150.0,0.00014612,2]
[422335348,1778839832000,-32101.82,0.00014504,2]
[422335350,1778839832000,-1487.49,0.00014504,2]
[422335343,1778839832000,-587.0,0.00014343,2]
[422335349,1778839832000,-9999.99,0.00014504,2]
[422335353,1778839832000,-150.0,0.00014687,2]
[422335354,1778839832000,-500.0,0.00014687,2]
[422335355,1778839832000,-150.0,0.00014762,2]
[422335358,1778839832000,-1024.27572098,0.000149,2]
[422335356,1778839832000,-150.0,0.00014836,2]
[422335357,1778839832000,-351.0,0.00014858,2]
[422335351,1778839832000,-150.0,0.00014537,2]
[422335364,1778839832000,-150.0,0.00014911,2]
[422335403,1778839833000,-500.0,0.00014999,2]
[422335401,1778839833000,-500.0,0.00014999,2]
[422335406,1778839833000,-500.0,0.00014999,2]
[422335404,1778839833000,-500.0,0.00014999,2]
[422335408,1778839833000,-500.0,0.00014999,2]
[422335405,1778839833000,-500.0,0.00014999,2]
[422335411,1778839833000,-439.51887329,0.00014999,2]
[422335409,1778839833000,-500.0,0.00014999,2]
[422335407,1778839833000,-500.0,0.00014999,2]
[422335413,1778839833000,-500.0,0.00014999,2]
[422335423,1778839833000,-500.0,0.00014999,2]
[422335412,1778839833000,-500.0,0.00014999,2]
[422335402,1778839833000,-500.0,0.00014999,2]
[422335414,1778839833000,-500.0,0.00014999,2]
[422335410,1778839833000,-500.0,0.00014999,2]
[422335400,1778839833000,-500.0,0.00014999,2]
[422335399,1778839833000,-500.0,0.00014999,2]
[422335396,1778839833000,-500.0,0.00014999,2]
[422335416,1778839833000,-500.0,0.00014999,2]
[422335383,1778839833000,-500.0,0.00014999,2]
[422335387,1778839833000,-500.0,0.00014999,2]
[422335386,1778839833000,-500.0,0.00014999,2]
[422335384,1778839833000,-150.0,0.00014999,2]
[422335385,1778839833000,-150.0,0.00014999,2]
[422335388,1778839833000,-500.0,0.00014999,2]
[422335390,1778839833000,-500.0,0.00014999,2]
[422335393,1778839833000,-500.0,0.00014999,2]
[422335395,1778839833000,-500.0,0.00014999,2]
[422335391,1778839833000,-500.0,0.00014999,2]
[422335389,1778839833000,-500.0,0.00014999,2]
[422335392,1778839833000,-500.0,0.00014999,2]
[422335394,1778839833000,-500.0,0.00014999,2]
[422335397,1778839833000,-500.0,0.00014999,2]
[422335398,1778839833000,-500.0,0.00014999,2]
[422335415,1778839833000,-500.0,0.00014999,2]
[422335438,1778839833000,-300.0,0.00014999,2]
[422335417,1778839833000,-500.0,0.00014999,2]
[422335448,1778839833000,-500.0,0.00014999,2]
[422335437,1778839833000,-500.0,0.00014999,2]
[422335439,1778839833000,-500.0,0.00014999,2]
[422335441,1778839833000,-500.0,0.00014999,2]
[422335443,1778839833000,-500.0,0.00014999,2]
[422335442,1778839833000,-500.0,0.00014999,2]
[422335420,1778839833000,-212.77932655,0.00014999,2]
[422335440,1778839833000,-500.0,0.00014999,2]
[422335446,1778839833000,-500.0,0.00014999,2]
[422335445,1778839833000,-500.0,0.00014999,2]
[422335447,1778839833000,-254.18339889,0.00014999,2]
[422335453,1778839833000,-1254.41808677,0.00015,2]
[422335449,1778839833000,-300.0,0.00014999,2]
[422335450,1778839833000,-666.0,0.00014999,2]
[422335444,1778839833000,-438.1033022,0.00014999,2]
[422335451,1778839833000,-300.0,0.00014999,2]
[422335433,1778839833000,-500.0,0.00014999,2]
[422335436,1778839833000,-500.0,0.00014999,2]
[422335421,1778839833000,-271.1999,0.00014999,2]
[422335419,1778839833000,-500.0,0.00014999,2]
[422335418,1778839833000,-500.0,0.00014999,2]
[422335422,1778839833000,-500.0,0.00014999,2]
[422335424,1778839833000,-500.0,0.00014999,2]
[422335427,1778839833000,-500.0,0.00014999,2]
[422335431,1778839833000,-500.0,0.00014999,2]
[422335426,1778839833000,-500.0,0.00014999,2]
[422335430,1778839833000,-500.0,0.00014999,2]
[422335429,1778839833000,-500.0,0.00014999,2]
[422335425,1778839833000,-500.0,0.00014999,2]
[422335428,1778839833000,-500.0,0.00014999,2]
[422335432,1778839833000,-500.0,0.00014999,2]
[422335435,1778839833000,-500.0,0.00014999,2]
[422335434,1778839833000,-500.0,0.00014999,2]
[422335452,1778839833000,-60242.1148058,0.00015,2]
[422335463,1778839838000,-823.56854764,0.00014934,2]
[422335465,1778839838000,-266.37376981,0.00014999,2]
[422335468,1778839838000,-7429947.53700213,0.00015,2]
[422335466,1778839838000,-151.0,0.00014999,2]
[422335464,1778839838000,-863.61859053,0.00014934,2]
[422335467,1778839838000,-95762.0531123,0.00014999,2]
[422335538,1778839843000,-592.5745959,0.00015,2]
[422335536,1778839843000,-39.72713813,0.00014968,2]
[422335537,1778839843000,-1514.66286183,0.00015,2]
[422335535,1778839843000,-1647.46000004,0.00014968,2]
[422335646,1778839872000,575.19,0.00030137,120]
[422335648,1778840160000,1799.96,1.13e-06,120]
[422335649,1778840162000,1799.88,1.13e-06,120]
[422335650,1778840163000,1799.88,1.13e-06,120]
[422335651,1778840164000,1799.88,1.13e-06,120]
[422335652,1778840166000,1799.88,1.13e-06,120]
[422335653,1778840167000,1799.88,1.13e-06,120]
[422335654,1778840168000,1799.88,1.13e-06,120]
[422335655,1778840169000,1799.88,1.13e-06,120]
[422335656,1778840171000,1799.88,1.13e-06,120]
[422335657,1778840172000,1799.88,1.13e-06,120]
[422335658,1778840174000,1799.88,1.13e-06,120]
[422335659,1778840175000,1799.88,1.13e-06,120]
[422335660,1778840177000,1799.88,1.13e-06,120]
[422335661,1778840178000,1799.88,1.13e-06,120]
[422335662,1778840179000,1799.88,1.13e-06,120]
[422335663,1778840180000,1799.88,1.13e-06,120]
[422335664,1778840182000,1799.88,1.13e-06,120]
[422335665,1778840183000,1799.88,1.13e-06,120]
[422335666,1778840184000,1799.88,1.13e-06,120]
[422335667,1778840185000,1799.88,1.13e-06,120]
[422335675,1778840531000,510.0,0.00030136,120]
[422335688,1778840893000,200.0,0.0003013,120]
[422335717,1778841032000,-200.0,0.00014316,2]
[422335711,1778841032000,-250.0,0.00014,2]
[422335714,1778841032000,-949.83505448,0.00014201,2]
[422335716,1778841032000,-200.0,0.00014283,2]
[422335712,1778841032000,-200.0,0.00014034,2]
[422335709,1778841032000,-949.83505448,0.00013968,2]
[422335719,1778841032000,-150.0,0.0001432,2]
[422335710,1778841032000,-166.66,0.00013977,2]
[422335729,1778841032000,-568.0,0.00014835,2]
[422335718,1778841032000,-949.83505448,0.00014318,2]
[422335720,1778841032000,-195.79,0.00014374,2]
[422335707,1778841032000,-28004.4881128,0.000139,2]
[422335713,1778841032000,-949.83505448,0.00014085,2]
[422335708,1778841032000,-300.0,0.00013952,2]
[422335692,1778841032000,-1200.0,0.00013487,2]
[422335703,1778841032000,-150.0,0.00013726,2]
[422335704,1778841032000,-2901.85,0.000138,2]
[422335702,1778841032000,-166.66,0.00013699,2]
[422335695,1778841032000,-262.25245997,0.00013488,2]
[422335705,1778841032000,-949.83505457,0.00013852,2]
[422335698,1778841032000,-150.0,0.00013488,2]
[422335701,1778841032000,-150.0,0.00013488,2]
[422335700,1778841032000,-150.0,0.00013488,2]
[422335697,1778841032000,-153.59814659,0.00013488,2]
[422335699,1778841032000,-281.32134049,0.00013488,2]
[422335696,1778841032000,-150.0,0.00013488,2]
[422335694,1778841032000,-150.0,0.00013488,2]
[422335693,1778841032000,-1200.0,0.00013487,2]
[422335721,1778841032000,-949.83505448,0.00014434,2]
[422335706,1778841032000,-116735.8812872,0.000139,2]
[422335728,1778841032000,-166.66,0.00014814,2]
[422335715,1778841032000,-166.66,0.00014256,2]
[422335727,1778841032000,-1082.89,0.000148,2]
[422335755,1778841032000,-315.07199014,0.0001499,2]
[422335724,1778841032000,-949.83505448,0.00014667,2]
[422335754,1778841032000,-315.07199014,0.0001499,2]
[422335753,1778841032000,-197.7782066,0.00014986,2]
[422335752,1778841032000,-188.21085343,0.00014986,2]
[422335751,1778841032000,-188.55123638,0.0001496,2]
[422335749,1778841032000,-233.44059823,0.000149,2]
[422335744,1778841032000,-25000.0,0.000149,3]
[422335745,1778841032000,-25636.48147076,0.000149,2]
[422335747,1778841032000,-5000.0,0.000149,2]
[422335746,1778841032000,-949.83505448,0.000149,2]
[422335748,1778841032000,-530.10564895,0.000149,2]
[422335742,1778841032000,-512.13786049,0.000149,2]
[422335743,1778841032000,-153.53198692,0.000149,2]
[422335737,1778841032000,-530.10564895,0.000149,2]
[422335750,1778841032000,-1854.38361088,0.000149,2]
[422335738,1778841032000,-530.10564895,0.000149,2]
[422335722,1778841032000,-166.66,0.00014535,2]
[422335732,1778841032000,-200.0,0.0001488,2]
[422335723,1778841032000,-949.83505448,0.00014551,2]
[422335726,1778841032000,-949.83505448,0.00014784,2]
[422335725,1778841032000,-480.0,0.00014783,2]
[422335735,1778841032000,-530.10564895,0.00014899,2]
[422335731,1778841032000,-162.0,0.0001488,2]
[422335730,1778841032000,-29964.16918207,0.0001485,2]
[422335739,1778841032000,-530.10564895,0.000149,2]
[422335734,1778841032000,-530.10564895,0.00014899,2]
[422335733,1778841032000,-530.10564902,0.00014899,2]
[422335741,1778841032000,-6965.5908,0.000149,2]
[422335740,1778841032000,-370.54769238,0.000149,2]
[422335736,1778841032000,-530.10564895,0.00014899,2]
[422335789,1778841033000,-675.9,0.00014999,2]
[422335781,1778841033000,-500.0,0.00014999,2]
[422335788,1778841033000,-675.9,0.00014999,2]
[422335785,1778841033000,-675.9,0.00014999,2]
[422335787,1778841033000,-675.9,0.00014999,2]
[422335786,1778841033000,-675.9,0.00014999,2]
[422335790,1778841033000,-675.9,0.00014999,2]
[422335778,1778841033000,-150.0,0.00014999,2]
[422335780,1778841033000,-500.0,0.00014999,2]
[422335794,1778841033000,-675.9,0.00014999,2]
[422335783,1778841033000,-500.0,0.00014999,2]
[422335784,1778841033000,-234.66857943,0.00014999,2]
[422335792,1778841033000,-675.9,0.00014999,2]
[422335802,1778841033000,-675.9,0.00014999,2]
[422335791,1778841033000,-675.9,0.00014999,2]
[422335801,1778841033000,-675.9,0.00014999,2]
[422335795,1778841033000,-675.9,0.00014999,2]
[422335793,1778841033000,-675.9,0.00014999,2]
[422335779,1778841033000,-500.0,0.00014999,2]
[422335782,1778841033000,-500.0,0.00014999,2]
[422335776,1778841033000,-150.0,0.00014999,2]
[422335763,1778841033000,-500.0,0.00014999,2]
[422335772,1778841033000,-500.0,0.00014999,2]
[422335796,1778841033000,-675.9,0.00014999,2]
[422335756,1778841033000,-315.07199014,0.0001499,2]
[422335757,1778841033000,-151.0,0.00014997,2]
[422335758,1778841033000,-500.0,0.00014999,2]
[422335762,1778841033000,-500.0,0.00014999,2]
[422335759,1778841033000,-500.0,0.00014999,2]
[422335761,1778841033000,-500.0,0.00014999,2]
[422335760,1778841033000,-500.0,0.00014999,2]
[422335764,1778841033000,-270.44102647,0.00014999,2]
[422335765,1778841033000,-500.0,0.00014999,2]
[422335766,1778841033000,-500.0,0.00014999,2]
[422335767,1778841033000,-500.0,0.00014999,2]
[422335768,1778841033000,-500.0,0.00014999,2]
[422335769,1778841033000,-500.0,0.00014999,2]
[422335770,1778841033000,-356.67231154,0.00014999,2]
[422335771,1778841033000,-500.0,0.00014999,2]
[422335775,1778841033000,-150.0,0.00014999,2]
[422335773,1778841033000,-603.68728903,0.00014999,2]
[422335774,1778841033000,-1096.81108638,0.00014999,5]
[422335777,1778841033000,-150.0,0.00014999,2]
[422335798,1778841033000,-675.9,0.00014999,2]
[422335825,1778841033000,-500.0,0.00014999,2]
[422335800,1778841033000,-675.9,0.00014999,2]
[422335824,1778841033000,-500.0,0.00014999,2]
[422335821,1778841033000,-500.0,0.00014999,2]
[422335828,1778841033000,-500.0,0.00014999,2]
[422335831,1778841033000,-500.0,0.00014999,2]
[422335834,1778841033000,-500.0,0.00014999,2]
[422335833,1778841033000,-500.0,0.00014999,2]
[422335829,1778841033000,-500.0,0.00014999,2]
[422335830,1778841033000,-500.0,0.00014999,2]
[422335832,1778841033000,-500.0,0.00014999,2]
[422335835,1778841033000,-500.0,0.00014999,2]
[422335838,1778841033000,-300.0,0.00014999,2]
[422335836,1778841033000,-199.36553444,0.00014999,2]
[422335837,1778841033000,-666.0,0.00014999,2]
[422335839,1778841033000,-666.0,0.00014999,2]
[422335840,1778841033000,-300.0,0.00014999,2]
[422335841,1778841033000,-300.0,0.00014999,2]
[422335843,1778841033000,-16229.09747781,0.00015,2]
[422335842,1778841033000,-300.0,0.00014999,2]
[422335799,1778841033000,-675.9,0.00014999,2]
[422335823,1778841033000,-500.0,0.00014999,2]
[422335822,1778841033000,-500.0,0.00014999,2]
[422335844,1778841033000,-131633.56069985,0.00015,2]
[422335819,1778841033000,-500.0,0.00014999,2]
[422335797,1778841033000,-675.9,0.00014999,2]
[422335809,1778841033000,-162.16117544,0.00014999,2]
[422335803,1778841033000,-675.9,0.00014999,2]
[422335808,1778841033000,-676.0847041,0.00014999,2]
[422335811,1778841033000,-150.0,0.00014999,2]
[422335805,1778841033000,-675.9,0.00014999,2]
[422335804,1778841033000,-675.9,0.00014999,2]
[422335807,1778841033000,-675.9,0.00014999,2]
[422335806,1778841033000,-675.9,0.00014999,2]
[422335810,1778841033000,-603.34873986,0.00014999,2]
[422335814,1778841033000,-500.0,0.00014999,2]
[422335812,1778841033000,-150.0,0.00014999,2]
[422335815,1778841033000,-500.0,0.00014999,2]
[422335818,1778841033000,-500.0,0.00014999,2]
[422335817,1778841033000,-500.0,0.00014999,2]
[422335820,1778841033000,-500.0,0.00014999,2]
[422335816,1778841033000,-500.0,0.00014999,2]
[422335826,1778841033000,-500.0,0.00014999,2]
[422335813,1778841033000,-500.0,0.00014999,2]
[422335827,1778841033000,-500.0,0.00014999,2]
[422335845,1778841038000,-162.0,0.0001488,2]